Workbook

Sheet Introduction
D1: INTRODUCTION | J1: DISCLAIMER: The Louisiana Department of Transportation and Development (LaDOTD) makes these documents and software available on an "as is" basis. All warranties and representations of any kind with regard to said documents and software are disclaimed, including the implied warranties of merchantability and fitness for a particular use. Under no circumstances will the LaDOTD, or any of its officers or employees be liable for any consequential, incidental, special or exemplary damages even if apprised of the likelihood of such damages occurring. The LaDOTD does not warrant the documents and software against deficiencies of any kind. The use of any of these documents and software for work that is under contract with the LaDOTD does not relieve the contractor from any obligations assumed by the contract, or from complete and proper fulfillment of the terms of the contract, nor does it entitle the contractor to compensation for damages or loss which could be attributed to such use. Information on this web site is posted to aid in the efficient dissemination of information to designers. The data contained within this web site is periodically updated. Designers are responsible to be aware of any updates and incorporate significant changes into their final design.
D3: Date: | E3: 2019-03-18
D4: Version: | E4: 1.1
C6: Developed By: | E6: Ching Tsai
B7: Checked and Modified By: | E7: Qiming Chen
C8: Reviewed By: | D8: QA | E8: Heather Patton
C10: Maintained By: | E10: Qiming Chen
D11: Email: | E11: qiming.chen@la.gov
D12: Phone: | E12: 225-379-1412
A14: Genearl: This spreadsheet is designed to aid a qualified engineer in completing the bridge load rating analysis of a reinforced concrete pipe cuvlert structure (DOTD culvert structure type: CONPIP). Sound engineering judgement and familiariry with the analysis are required to choose appropriate input values and to recognize situations that may deviate from the standard case on which these spreadsheets based. Excel VBA programming is used in this spreadsheet for load rating analysis. This spreadsheet is comprised of six worksheets: Introduction, Input, Summary, Transition Width, Options, and Calcs. The Input and Summary worksheets are protected. The passoword is "Rating".
A16: Input Worksheet: Yellow shaded cells are required input, please input a appropriate value or choose a appropriate option from the drop-down list. After finishing inputing all values, please click "Click to Rate the Structure" to do load rating analysis.
A18: Summary Worksheet: This worksheet will be updated automatically after clicking "Click to Rate the Structure" in the Input Worksheet. This worksheet contains the general information and rating facotrs of the concrete pipe defined in the Input Worksheet.
A20: Transition Width Worksheet: This worksheet is a reference table that is reproduced from ACPA's Concrete Pipe Design Manul.
A22: Options Worksheet (Hidden): This worksheet contains data used by excel VBA programs for load rating analysis. This worksheet also contains tabulated values that are accessed using lookup funcions based on selections from the drop down cells in the Input worksheet.
A24: Calcs Worksheet (Hidden): This worksheet contains the calculations to obtain rating weigtht, governing rating factor, governing load model, and recommended posting load in the Summary Worksheet.
A26: References:
A27: AASHTO LRFD Bridge Design Specifications, Seventh Edition, Section 3, 4 & 12.
A28: ACPA Concrete Pipe Design Manual (Revised October 2011).
A29: LaDOTD Bridge Design & Evaluation Manual REV 7, Section 6.
A30: AASHTO Manual for Bridge Evaluation, Second Edition.
A31: ASTM C-76.
A32: "Physical Evaluation of the Dissipation of a Concentrated Load When Applied to Reinforced Concrete Pipe", Pipelines Conference 2012, August 19-22, 2012, Miami Beach, Flordia

Sheet Input
A1: Bridge Data
A3: District | B3: 2 | D3: Structure Number | E3: P2630001901501 | I3: Bridge Name | K3: Canal #14/Bainbridge
A4: Parish | B4: 26 | D4: Recall Number | E4: 100214 | I4: Inspection Date | K4: 04/27/2017
A5: Route | B5: Bainbridge Ave | D5: Year Built | E5: 1970 | I5: Overall | K5: 7
A6: Bridge Posting | B6: - | D6: Design Load | E6: - | I6: Deck | K6: N
A7: Bridge Type | B7: CONPIP | D7: Roadway Width | E7: - | I7: Super | K7: N
A8: Bridge Length | B8: 22 | D8: Plan Location | E8: - | I8: Sub | K8: N
A9: Standard Plan | B9: ASTM C76 (126" diameter)
A11: Bridge Load Rating Summary
A13: Dead Load | E13: LRFR Evaluation Factors | J13: Traffic
A14: Surface Thickness (in) | D14: 30 | E14: Condition Factor (φc) | F14: 1 | J14: ADTT (one way) | M14: 5 | O14: Yellow shaded areas are required input.
A15: Wearing Surface Type | D15: - | E15: System Factor (φs) | F15: 1 | O15: Input a value or choose a option from a drop-down list.
A16: Non-Structural Attachments | D16: - | E16: Surface Rating | F16: -
A21: Pipe Information
A22: Pipe Type | B22: Circular
A23: Pipe Size | B23: 48 | C23: inches
A24: Wall Thickness | B24: C | C24: ASTM C76
A25: D-Load Rating | B25: 1350 | C25: lb/ft
A28: Bedding
A29: Installation Type | B29: No Bedding/No Backfill Spec
A32: Backfill
A33: Material | B33: No Bedding/No Backfill Spec
A36: Installation Method (See Figures)
A37: Unknown
E39: Construction
A40: Water | G40: Fill thickenss above pipe (H) | H40: =D14/12 -> 2.5 | I40: ft
B41: Yes | G41: Backfill unit weight | H41: 120 | I41: pcf
G42: Excavation Width (Bd) | H42: 110 | I42: feet
A44: Traffic Direction | E44: Transition Width
A45: Parallel to the pipe span | E45: 9.2 | I45: ft
A48: Pavement Type | E48: Section Loss
A49: Asphalt | E49: 0 | I49: in.
A52: Live Load Distribution Factor | E52: Resistance Factor
B53: =IF(H40<2,1.15,(IF(B23<=24,1.15,(IF(B23>=96,1.75,0.6*(B23-24)/(96-24)+1.15))))) -> 1.35 | E53: 1

Sheet Summary
A2: Bridge Load Rating Summary Sheet
A3: Bridge Data
A5: District | B5: =Input!B3 -> 2 | D5: Structure Number | E5: =Input!E3 -> P2630001901501 | H5: Bridge Name | I5: =Input!K3 -> Canal #14/Bainbridge
A6: Parish | B6: =Input!B4 -> 26 | D6: Recall Number | E6: =Input!E4 -> 100214 | H6: Inspection Date | I6: =Input!K4 -> 04/27/2017
A7: Route | B7: =Input!B5 -> Bainbridge Ave | D7: Year Built | E7: =Input!E5 -> 1970 | H7: Overall | I7: =Input!K5 -> 7
A8: Bridge Posting | B8: =Input!B6 -> - | D8: Design Load | E8: =Input!E6 -> - | H8: Deck | I8: =Input!K6 -> N
A9: Bridge Type | B9: =Input!B7 -> CONPIP | D9: Roadway Width | E9: =Input!E7 -> - | H9: Super | I9: =Input!K7 -> N
A10: Bridge Length | B10: =Input!B8 -> 22 | D10: Plan Location | H10: Sub | I10: =Input!K8 -> N
A11: Standard Plan | B11: =Input!B9 -> ASTM C76 (126" diameter)
A13: Bridge/Culvert Load Rating Summary
A15: Dead Load | E15: LRFR Evaluation Factors | H15: Traffic
A16: Wearing Surface Thickness (in) | E16: Condition Factor, super (φc) | G16: =Input!F14 -> 1 | H16: ADTT (one way) | I16: =Input!M14 -> 5
A17: Wearing Surface Type | E17: Condition Factor, sub (φc)
A18: Non-Structural Attachments | D18: =Input!D16 -> - | E18: System Factor, super (φs) | G18: =Input!F15 -> 1
A19: Fill Thickness (in) | D19: =Input!D14 -> 30 | E19: System Factor, sub (φs)
A21: Vehicle Type | B21: GVW (kips) | C21: Superstructure/Deck/Culvert | G21: Substructure
C22: Rating Factor | D22: Rating Weight (tons) | E22: Controlling Member | F22: Controlling Load Effect | G22: Rating Factor | H22: Posting Weight (tons) | I22: Controlling Member | K22: Controlling Load Effect
A24: HL-93 (INV) | B24: N/A | C24: 1.035159699 | E24: N/A | F24: D-Load
A25: HL-93 (OPR) | B25: N/A | C25: 1.341873683 | E25: N/A | F25: D-Load
A26: LADV-11(INV) | B26: N/A
A27: LA Type 3 | B27: 41 | C27: 2.173835367 | D27: =+Calcs!G20 -> 44.56362503 | E27: N/A | F27: D-Load | H27: =IF(ISNUMBER(G27),Calcs!M20,"") -> 
A28: LA Type 3S2 | B28: 73 | C28: 2.173835367 | D28: =+Calcs!G26 -> 79.3449909 | E28: N/A | F28: D-Load | H28: =IF(ISNUMBER(G28),Calcs!M21,"") -> 
A29: Type 3-3 | B29: 80 | C29: 2.173835367 | D29: =+Calcs!G27 -> 86.95341469 | E29: N/A | F29: D-Load | H29: =IF(ISNUMBER(G29),Calcs!M22,"") -> 
A30: LA Type 6 | B30: 80 | C30: 1.880073831 | D30: =+Calcs!G28 -> 75.20295324 | E30: N/A | F30: D-Load | H30: =IF(ISNUMBER(G30),Calcs!M23,"") -> 
A31: LA Type 8 | B31: 88 | C31: 1.880073831 | D31: =+Calcs!G29 -> 82.72324857 | E31: N/A | F31: D-Load | H31: =IF(ISNUMBER(G31),Calcs!M24,"") -> 
A32: NRL | B32: 80 | C32: 2.045962699 | D32: =+Calcs!G19 -> 44.56362503 | E32: N/A | F32: D-Load | H32: =IF(ISNUMBER(G32),Calcs!M25,"") -> 
A33: SU4 | B33: 54 | C33: 2.045962699 | D33: =+Calcs!G21 -> 55.24099286 | E33: N/A | F33: D-Load | H33: =IF(ISNUMBER(G33),Calcs!M26,"") -> 
A34: SU5 | B34: 62 | C34: 2.045962699 | D34: =+Calcs!G22 -> 63.42484366 | E34: N/A | F34: D-Load | H34: =IF(ISNUMBER(G34),Calcs!M27,"") -> 
A35: SU6 | B35: 69.5 | C35: 2.045962699 | D35: =+Calcs!G23 -> 71.09720378 | E35: N/A | F35: D-Load | H35: =IF(ISNUMBER(G35),Calcs!M28,"") -> 
A36: SU7 | B36: 77.5 | C36: 2.045962699 | D36: =+Calcs!G24 -> 79.28105457 | E36: N/A | F36: D-Load | H36: =IF(ISNUMBER(G36),Calcs!M29,"") -> 
A37: Lane-Type I | B37: N/A
A38: Lane Type II | B38: N/A
A43: Posting Analysis Summary | F43: Please Check the following boxes that apply:
G44: Plans do not exist
A45: Governing Rating Factor | D45: =Calcs!F31 -> 1.880073831 | G45: Exterior girder controls the load rating
A46: Governing Load Model | D46: =+Calcs!B31 -> LA Type 6 | G46: As-designed rating
A47: Recommended Posting Load | D47: =+Calcs!H31 -> No Limit | G47: Striped lane rating
A50: QC/QA
A52: Rated By:
A53: Checked By: | E53: Design Project Number:
A54: QA By: | E54: Rating Software:
A55: Date Rated:
A57: NOTES

Sheet Transition Width

Sheet Calcs (hidden)
B2: Posting Sign Table
B3: Group A | C3: Group B | D3: Sign # | E3: Post Sign
B4: 0 | C4: 0 | D4: 1 | E4: Closed
B5: 3 | C5: 3 | D5: 2 | E5: 3
B6: 4 | C6: 4 | D6: 3 | E6: 4
B7: 5 | C7: 5 | D7: 4 | E7: 5
B8: 10 | C8: 15 | D8: 5 | E8: 10-15
B9: 15 | C9: 25 | D9: 6 | E9: 15-25
B10: 20 | C10: 35 | D10: 7 | E10: 20-35
B11: 25 | C11: 40 | D11: 8 | E11: 25-40
B12: <=25 | C12: >40 | D12: 9 | E12: 25-NL
B13: <=30 | C13: >40 | D13: 10 | E13: 30-NL
B14: <=35 | C14: >40 | D14: 11 | E14: 35-NL
B15: >35 | C15: >40 | D15: 12 | E15: No Limit
B18: Vehicle Type | C18: GVW (kips) | D18: Super RF | E18: Sub RF | F18: Min RF | G18: Post Weight | H18: Post Sign | I18: Sign # | K18: WT IF RF<1 | M18: Sub WT
A19: Group A | B19: NRL | C19: 80 | D19: =+Summary!C32 -> 2.045962699 | E19: =+Summary!G32 -> 0 | F19: =IF(E19=0,D19,MIN(D19:E19)) -> 2.045962699 | G19: =PostingWeight(F20,C20) -> 44.56362503 | M19: =INT((IF(E19<0.3,0,IF(AND(E19>=0.3,E19<1),(C19/(2*0.7))*(E19-0.3),IF(E19>=1,(C19/2)*(E19),"error")))*100+0.5))/100 -> 0
B20: LA Type 3 | C20: 41 | D20: =Summary!C27 -> 2.173835367 | E20: =Summary!G27 -> 0 | F20: =IF(E20=0,D20,MIN(D20:E20)) -> 2.173835367 | G20: =PostingWeight(F20,C20) -> 44.56362503 | H20: =postingsignA(G20,F20,MinRatingB) -> No Limit | I20: =INDEX($D$4:$D$15,MATCH($H20,$E$4:$E$15,0)) -> 12 | K20: =IF(F20<1,PostingWeight(F20,C20), 40) -> 40 | M20: =INT((IF(E20<0.3,0,IF(AND(E20>=0.3,E20<1),(C20/(2*0.7))*(E20-0.3),IF(E20>=1,(C20/2)*(E20),"error")))*100+0.5))/100 -> 0
B21: SU4 | C21: 54 | D21: =Summary!C33 -> 2.045962699 | E21: =Summary!G33 -> 0 | F21: =IF(E21=0,D21,MIN(D21:E21)) -> 2.045962699 | G21: 55.24099286 | H21: =postingsignA(G21,F21,MinRatingB) -> No Limit | I21: =INDEX($D$4:$D$15,MATCH($H21,$E$4:$E$15,)) -> 12 | K21: =IF(F21<1,PostingWeight(F21,C21), 40) -> 40 | M21: =INT((IF(E21<0.3,0,IF(AND(E21>=0.3,E21<1),(C21/(2*0.7))*(E21-0.3),IF(E21>=1,(C21/2)*(E21),"error")))*100+0.5))/100 -> 0
B22: SU5 | C22: 62 | D22: =Summary!C34 -> 2.045962699 | E22: =Summary!G34 -> 0 | F22: 2.045962699 | G22: 63.42484366 | H22: =postingsignA(G22,F22,MinRatingB) -> No Limit | I22: =INDEX($D$4:$D$15,MATCH($H22,$E$4:$E$15,)) -> 12 | K22: 40 | M22: 0
B23: SU6 | C23: 69.5 | D23: =Summary!C35 -> 2.045962699 | E23: =Summary!G35 -> 0 | F23: 2.045962699 | G23: 71.09720378 | H23: =postingsignA(G23,F23,MinRatingB) -> No Limit | I23: =INDEX($D$4:$D$15,MATCH($H23,$E$4:$E$15,)) -> 12 | K23: 40 | M23: 0
B24: SU7 | C24: 77.5 | D24: =Summary!C36 -> 2.045962699 | E24: =Summary!G36 -> 0 | F24: 2.045962699 | G24: 79.28105457 | H24: =postingsignA(G24,F24,MinRatingB) -> No Limit | I24: =INDEX($D$4:$D$15,MATCH($H24,$E$4:$E$15,)) -> 12 | K24: 40 | M24: 0
B25: =IF(F25>=1,INDEX(B20:B24,MATCH(F25,F20:F24,0)),INDEX(B20:B24,MATCH($G$25,$G20:$G24,0))) -> SU4 | F25: =MIN(F20:F24) -> 2.045962699 | G25: =IF(I25=12,INDEX(G20:G24,MATCH(F25,F20:F24,0)),K25) -> 55.24099286 | H25: =INDEX(H20:H24,MATCH($G$25,$G20:$G24,0)) -> No Limit | I25: =+MIN(I20:I24) -> 12 | K25: =IF(I25=12,0,IF(MAX(K20:K24)=0,0,SMALL(K20:K24,COUNTIF(K20:K24,0)+1))) -> 0
A26: Group B | B26: LA Type 3S2 | C26: 73 | D26: =Summary!C28 -> 2.173835367 | E26: =Summary!G28 -> 0 | F26: =IF(E26=0,D26,MIN(D26:E26)) -> 2.173835367 | G26: =PostingWeight(F26,C26) -> 79.3449909 | H26: =postingsignB(G26, F26) -> No Limit | I26: =INDEX($D$4:$D$15,MATCH($H26,$E$4:$E$15,)) -> 12 | K26: =IF(F26<1,PostingWeight(F26,C26), 40) -> 40 | M26: 0
B27: Type 3-3 | C27: 80 | D27: =Summary!C29 -> 2.173835367 | E27: =Summary!G29 -> 0 | F27: 2.173835367 | G27: =PostingWeight(F27,C27) -> 86.95341469 | H27: =postingsignB(G27, F27) -> No Limit | I27: =INDEX($D$4:$D$15,MATCH($H27,$E$4:$E$15,)) -> 12 | K27: =IF(F27<1,PostingWeight(F27,C27), 40) -> 40 | M27: 0
B28: LA Type 6 | C28: 80 | D28: =Summary!C30 -> 1.880073831 | E28: =Summary!G30 -> 0 | F28: 1.880073831 | G28: 75.20295324 | H28: No Limit | I28: =INDEX($D$4:$D$15,MATCH($H28,$E$4:$E$15,)) -> 12 | K28: 40 | M28: 0
B29: LA Type 8 | C29: 88 | D29: =Summary!C31 -> 1.880073831 | E29: =Summary!G31 -> 0 | F29: 1.880073831 | G29: 82.72324857 | H29: No Limit | I29: =INDEX($D$4:$D$15,MATCH($H29,$E$4:$E$15,)) -> 12 | K29: 40 | M29: 0
B30: =IF(F30>=1,INDEX(B26:B29,MATCH(F30,F26:F30,0)),INDEX(B26:B29,MATCH($G$30,$G26:$G29,0))) -> LA Type 6 | F30: =MIN(F26:F29) -> 1.880073831 | G30: =IF(I30=12,INDEX(G26:G29,MATCH(F30,F26:F29,0)),K30) -> 75.20295324 | H30: =INDEX(H26:H29,MATCH($G$30,$G26:$G29,0)) -> No Limit | I30: =MIN(I26:I29) -> 12 | K30: =IF(I30=12,0,IF(MAX(K26:K29)=0,0,SMALL(K26:K29,COUNTIF(K26:K29,0)+1))) -> 0
A31: Critical | B31: =IF(F31>=1,INDEX(B20:B29,MATCH(F31,F20:F29,0)),INDEX(B20:B29,MATCH($G$31,$G20:$G29,0))) -> LA Type 6 | F31: =IF(I31=9,SMALL(F$20:F$29,COUNTIF($F$20:$F$29,0)+1),INDEX(F20:F29,MATCH($G$31,$G20:$G29,0))) -> 1.880073831 | G31: =IF(I25<I30,G25,G30) -> 75.20295324 | H31: =INDEX(H20:H29,MATCH($I$31,$I20:$I29,0)) -> No Limit | I31: =MIN(I25,I30) -> 12

Sheet Options (hidden)
A1: Pipe Shape | E1: Trench Friction | J1: Pipe Wall Thickness
A2: Circular | F2: 0.1924 | J2: Pipe Size | K2: A | L2: B | M2: C
A3: Elliptical | F3: 0.165 | J3: 12 | K3: 1.75 | L3: 2 | M3: 2.75
A4: Arch | F4: 0.15 | J4: 15 | K4: 1.875 | L4: 2.25 | M4: 3
F5: 0.13 | J5: 18 | K5: 2 | L5: 2.5 | M5: 3.25
F6: 0.11 | J6: 21 | K6: 2.25 | L6: 2.75 | M6: 3.5
A7: Pipe Info. | B7: (ASTM C76) | C7: D-Load | J7: 24 | K7: 2.5 | L7: 3 | M7: 3.75
A8: Class | B8: Crack | C8: Ultimate | J8: 27 | K8: 2.625 | L8: 3.25 | M8: 4
A9: 1 | B9: 800 | C9: 1000 | J9: 30 | K9: 2.75 | L9: 3.5 | M9: 4.25
A10: 2 | B10: 1000 | C10: 1500 | J10: 33 | K10: 2.875 | L10: 3.75 | M10: 4.5
A11: 3 | B11: 1350 | C11: 2000 | J11: 36 | K11: 3 | L11: 4 | M11: 4.75
A12: 4 | B12: 2000 | C12: 3000 | J12: 42 | K12: 3.5 | L12: 4.5 | M12: 5.25
A13: 5 | B13: 3000 | C13: 3750 | J13: 48 | K13: 4 | L13: 5 | M13: 5.75
J14: 54 | K14: 4.5 | L14: 5.5 | M14: 6.25
J15: 60 | K15: 5 | L15: 6 | M15: 6.75
A16: Backfill and Bedding | B16: (DOTD Standard Specifications for Roads and Bridges - Section 701.08) | J16: 66 | K16: 5.5 | L16: 6.5 | M16: 7.25
A17: DOTD Type A | C17: - Stones, Recycled Concrete, Flowable Fill, or RAP | J17: 72 | K17: 6 | L17: 7 | M17: 7.75
A18: DOTD Type B | C18: - Select soils, Granular Material | J18: 78 | K18: 6.5 | L18: 7.5 | M18: 8.25
A19: No Bedding/No Backfill Spec | J19: 84 | K19: 7 | L19: 8 | M19: 8.75
J20: 90 | K20: 7.5 | L20: 8.5 | M20: 9.25
J21: 96 | K21: 8 | L21: 9 | M21: 9.75
A22: Installation | J22: 102 | K22: 8.5 | L22: 9.5 | M22: 10.25
A23: Trench | J23: 108 | K23: 9 | L23: 10 | M23: 10.75
A24: Embankment (positive projecting) | J24: 114 | K24: 9.5 | L24: 9.5 | M24: 9.5
A25: Embankment (negative projecting) | J25: 120 | K25: 10 | L25: 10 | M25: 10
A26: Unknown | J26: 126 | K26: 10.5 | L26: 10.5 | M26: 10.5
J27: 132 | K27: 11 | L27: 11 | M27: 11
A28: Load Direction | J28: 138 | K28: 11.5 | L28: 11.5 | M28: 11.5
A29: Parallel to the pipe span | J29: 144 | K29: 12 | L29: 12 | M29: 12
A30: Perpendicular to the pipe span | J30: 150 | K30: 12.5 | L30: 12.5 | M30: 12.5
J31: 156 | K31: 13 | L31: 13 | M31: 13
J32: 162 | K32: 13.5 | L32: 13.5 | M32: 13.5
A33: Surface Pavement | J33: 168 | K33: 14 | L33: 14 | M33: 14
A34: Concrete | J34: 174 | K34: 14.5 | L34: 14.5 | M34: 14.5
A35: Asphalt | J35: 180 | K35: 15 | L35: 15 | M35: 15
A36: Stone
A37: No Pavement
J38: Arching Coefficient
J39: 1 | K39: 1.35
A40: Live Load Distribution Factor | J40: 2 | K40: 1.4
A41: AASHTO | J41: 3 | K41: 1.4
A42: 1 | J42: 4 | K42: 1.45
A43: 1.15
A44: 1.5
A45: 1.75 | J45: Water Load Options
J46: Yes
A47: Bedding Factors (Bfe) | J47: No
B48: Embankment
B49: Type 1 | C49: Type 2 | D49: Type 3 | E49: Type 4 | J49: Live Load Factor | L49: ADTT
A50: 12 | B50: 4.4 | C50: 3.2 | D50: 2.5 | E50: 1.7 | L50: 100 | M50: 1000 | N50: 5000
A51: 18 | B51: 4.3 | C51: 3.1 | D51: 2.45 | E51: 1.7 | J51: HL-93 Truck Inventory | L51: 1.75 | M51: 1.75 | N51: 1.75
A52: 24 | B52: 4.2 | C52: 3 | D52: 2.4 | E52: 1.7 | J52: HL-93 Truck Operating | L52: 1.35 | M52: 1.35 | N52: 1.35
A53: 30 | B53: 4.1 | C53: 2.95 | D53: 2.35 | E53: 1.7 | J53: HL-93 Tandem Inventory | L53: 1.75 | M53: 1.75 | N53: 1.75
A54: 36 | B54: 4 | C54: 2.9 | D54: 2.3 | E54: 1.7 | J54: HL-93 Tandem Operating | L54: 1.35 | M54: 1.35 | N54: 1.35
A55: 42 | B55: =($A55-$A$54)/($A$60-$A$54)*(B$60-B$54)+B$54 -> 3.966666667 | C55: =($A55-$A$54)/($A$60-$A$54)*(C$60-C$54)+C$54 -> 2.883333333 | D55: =($A55-$A$54)/($A$60-$A$54)*(D$60-D$54)+D$54 -> 2.283333333 | E55: =($A55-$A$54)/($A$60-$A$54)*(E$60-E$54)+E$54 -> 1.7 | J55: LA Type 3 | L55: 1.3 | M55: 1.3 | N55: 1.45
A56: 48 | B56: =($A56-$A$54)/($A$60-$A$54)*(B$60-B$54)+B$54 -> 3.933333333 | C56: 2.866666667 | D56: 2.266666667 | E56: 1.7 | J56: LA Type 3S2 | L56: 1.3 | M56: 1.3 | N56: 1.45
A57: 54 | B57: 3.9 | C57: 2.85 | D57: 2.25 | E57: 1.7 | J57: LA Type 3-3 | L57: 1.3 | M57: 1.3 | N57: 1.45
A58: 60 | B58: 3.866666667 | C58: 2.833333333 | D58: 2.233333333 | E58: 1.7 | J58: LA Type 6 | L58: 1.3 | M58: 1.3 | N58: 1.45
A59: 66 | B59: 3.833333333 | C59: 2.816666667 | D59: 2.216666667 | E59: 1.7 | J59: LA Type 8 | L59: 1.3 | M59: 1.3 | N59: 1.45
A60: 72 | B60: 3.8 | C60: 2.8 | D60: 2.2 | E60: 1.7 | J60: NRL | L60: 1.3 | M60: 1.3 | N60: 1.45
A61: 84 | B61: =($A61-$A$60)/($A$68-$A$60)*(B$68-B$60)+B$60 -> 3.766666667 | C61: 2.8 | D61: 2.2 | E61: 1.7 | J61: SU4 | L61: 1.3 | M61: 1.3 | N61: 1.45
A62: 90 | B62: 3.75 | C62: 2.8 | D62: 2.2 | E62: 1.7 | J62: SU5 | L62: 1.3 | M62: 1.3 | N62: 1.45
A63: 96 | B63: 3.733333333 | C63: 2.8 | D63: 2.2 | E63: 1.7 | J63: SU6 | L63: 1.3 | M63: 1.3 | N63: 1.45
A64: 108 | B64: 3.7 | C64: 2.8 | D64: 2.2 | E64: 1.7 | J64: SU7 | L64: 1.3 | M64: 1.3 | N64: 1.45
A65: 120 | B65: 3.666666667 | C65: 2.8 | D65: 2.2 | E65: 1.7
A66: 126 | B66: 3.65 | C66: 2.8 | D66: 2.2 | E66: 1.7
A67: 132 | B67: 3.633333333 | C67: 2.8 | D67: 2.2 | E67: 1.7
A68: 144 | B68: 3.6 | C68: 2.8 | D68: 2.2 | E68: 1.7
A70: Bedding Factors (Bfo)
A71: Type 1 | B71: 2.3
A72: Type 2 | B72: 1.9
A73: Type 3 | B73: 1.7
A74: Type 4 | B74: 1.5
A75: Bedding Factors (BfLL)
B76: 12 | C76: 24 | D76: 30 | E76: 36 | F76: 42 | G76: 48 | H76: 54 | I76: 60 | J76: 66 | K76: 72 | L76: 84 | M76: 90 | N76: 96 | O76: 108 | P76: 120 | Q76: 126 | R76: 144
A77: 0.5 | B77: 2.2 | C77: 1.7 | D77: =(C77+E77)/2 -> 1.55 | E77: 1.4 | F77: =(E77+G77)/2 -> 1.35 | G77: 1.3 | H77: =(G77+I77)/2 -> 1.3 | I77: 1.3 | J77: =AVERAGE(I77,K77) -> 1.2 | K77: 1.1 | L77: 1.1 | M77: =AVERAGE(L77,N77) -> 1.1 | N77: 1.1 | O77: 1.1 | P77: 1.1 | Q77: =($Q$76-$P$76)/($R$76-$P$76)*(R77-P77)+P77 -> 1.1 | R77: 1.1
A78: 1 | B78: 2.2 | C78: 2.2 | D78: =(C78+E78)/2 -> 1.95 | E78: 1.7 | F78: =(E78+G78)/2 -> 1.6 | G78: 1.5 | H78: =(G78+I78)/2 -> 1.45 | I78: 1.4 | J78: =AVERAGE(I78,K78) -> 1.35 | K78: 1.3 | L78: 1.3 | M78: =AVERAGE(L78,N78) -> 1.3 | N78: 1.3 | O78: 1.1 | P78: 1.1 | Q78: =($Q$76-$P$76)/($R$76-$P$76)*(R78-P78)+P78 -> 1.1 | R78: 1.1
A79: 1.5 | B79: 2.2 | C79: 2.2 | D79: =(C79+E79)/2 -> 2.15 | E79: 2.1 | F79: 1.95 | G79: 1.8 | H79: 1.65 | I79: 1.5 | J79: 1.45 | K79: 1.4 | L79: 1.4 | M79: 1.35 | N79: 1.3 | O79: 1.3 | P79: 1.3 | Q79: 1.25 | R79: 1.1
A80: 2 | B80: 2.2 | C80: 2.2 | D80: 2.2 | E80: 2.2 | F80: 2.1 | G80: 2 | H80: 1.9 | I80: 1.8 | J80: 1.65 | K80: 1.5 | L80: 1.5 | M80: 1.45 | N80: 1.4 | O80: 1.4 | P80: 1.3 | Q80: 1.3 | R80: 1.3
A81: 2.5 | B81: 2.2 | C81: 2.2 | D81: 2.2 | E81: 2.2 | F81: 2.2 | G81: 2.2 | H81: 2.1 | I81: 2 | J81: 1.9 | K81: 1.8 | L81: 1.7 | M81: 1.6 | N81: 1.5 | O81: 1.4 | P81: 1.4 | Q81: 1.375 | R81: 1.3
A82: 3 | B82: 2.2 | C82: 2.2 | D82: 2.2 | E82: 2.2 | F82: 2.2 | G82: 2.2 | H82: 2.2 | I82: 2.2 | J82: 2.2 | K82: 2.2 | L82: 1.8 | M82: 1.75 | N82: 1.7 | O82: 1.5 | P82: 1.5 | Q82: 1.475 | R82: 1.4
A83: 3.5 | B83: 2.2 | C83: 2.2 | D83: 2.2 | E83: 2.2 | F83: 2.2 | G83: 2.2 | H83: 2.2 | I83: 2.2 | J83: 2.2 | K83: 2.2 | L83: 1.9 | M83: 1.85 | N83: 1.8 | O83: 1.7 | P83: 1.5 | Q83: 1.475 | R83: 1.4
A84: 4 | B84: 2.2 | C84: 2.2 | D84: 2.2 | E84: 2.2 | F84: 2.2 | G84: 2.2 | H84: 2.2 | I84: 2.2 | J84: 2.2 | K84: 2.2 | L84: 2.1 | M84: 2 | N84: 1.9 | O84: 1.8 | P84: 1.7 | Q84: 1.65 | R84: 1.5
A85: 4.5 | B85: 2.2 | C85: 2.2 | D85: 2.2 | E85: 2.2 | F85: 2.2 | G85: 2.2 | H85: 2.2 | I85: 2.2 | J85: 2.2 | K85: 2.2 | L85: 2.2 | M85: 2.1 | N85: 2 | O85: 1.9 | P85: 1.8 | Q85: 1.775 | R85: 1.7
A86: 5 | B86: 2.2 | C86: 2.2 | D86: 2.2 | E86: 2.2 | F86: 2.2 | G86: 2.2 | H86: 2.2 | I86: 2.2 | J86: 2.2 | K86: 2.2 | L86: 2.2 | M86: 2.2 | N86: 2.2 | O86: 2 | P86: 1.9 | Q86: 1.875 | R86: 1.8
A87: 50 | B87: 2.2 | C87: 2.2 | D87: 2.2 | E87: 2.2 | F87: 2.2 | G87: 2.2 | H87: 2.2 | I87: 2.2 | J87: 2.2 | K87: 2.2 | L87: 2.2 | M87: 2.2 | N87: 2.2 | O87: 2 | P87: 1.9 | Q87: 1.875 | R87: 1.8
B89: =$A77/B$76 -> 0.04166666667 | C89: =$A77/C$76 -> 0.02083333333 | D89: 0.01666666667 | E89: 0.01388888889 | F89: 0.0119047619 | G89: 0.01041666667 | H89: 0.009259259259 | I89: 0.008333333333 | J89: 0.007575757576 | K89: =$A77/K$76 -> 0.006944444444 | L89: 0.005952380952 | M89: =$A77/M$76 -> 0.005555555556 | N89: 0.005208333333 | O89: 0.00462962963 | P89: 0.004166666667 | Q89: =$A77/Q$76 -> 0.003968253968 | R89: 0.003472222222
B90: =$A78/B$76 -> 0.08333333333 | C90: 0.04166666667 | D90: 0.03333333333 | E90: 0.02777777778 | F90: 0.02380952381 | G90: 0.02083333333 | H90: 0.01851851852 | I90: 0.01666666667 | J90: 0.01515151515 | K90: =$A78/K$76 -> 0.01388888889 | L90: 0.0119047619 | M90: =$A78/M$76 -> 0.01111111111 | N90: 0.01041666667 | O90: 0.009259259259 | P90: 0.008333333333 | Q90: 0.007936507937 | R90: 0.006944444444
B91: =$A79/B$76 -> 0.125 | C91: 0.0625 | D91: 0.05 | E91: 0.04166666667 | F91: 0.03571428571 | G91: 0.03125 | H91: 0.02777777778 | I91: 0.025 | J91: 0.02272727273 | K91: 0.02083333333 | L91: 0.01785714286 | M91: =$A79/M$76 -> 0.01666666667 | N91: 0.015625 | O91: 0.01388888889 | P91: 0.0125 | Q91: 0.0119047619 | R91: 0.01041666667
B92: =$A80/B$76 -> 0.1666666667 | C92: 0.08333333333 | D92: 0.06666666667 | E92: 0.05555555556 | F92: 0.04761904762 | G92: 0.04166666667 | H92: 0.03703703704 | I92: 0.03333333333 | J92: 0.0303030303 | K92: 0.02777777778 | L92: 0.02380952381 | M92: =$A80/M$76 -> 0.02222222222 | N92: 0.02083333333 | O92: 0.01851851852 | P92: 0.01666666667 | Q92: 0.01587301587 | R92: 0.01388888889
B93: =$A81/B$76 -> 0.2083333333 | C93: 0.1041666667 | D93: 0.08333333333 | E93: 0.06944444444 | F93: 0.05952380952 | G93: 0.05208333333 | H93: 0.0462962963 | I93: 0.04166666667 | J93: 0.03787878788 | K93: 0.03472222222 | L93: 0.02976190476 | M93: =$A81/M$76 -> 0.02777777778 | N93: 0.02604166667 | O93: 0.02314814815 | P93: 0.02083333333 | Q93: 0.01984126984 | R93: 0.01736111111
B94: =$A82/B$76 -> 0.25 | C94: 0.125 | D94: 0.1 | E94: 0.08333333333 | F94: 0.07142857143 | G94: 0.0625 | H94: 0.05555555556 | I94: 0.05 | J94: 0.04545454545 | K94: 0.04166666667 | L94: 0.03571428571 | M94: =$A82/M$76 -> 0.03333333333 | N94: 0.03125 | O94: 0.02777777778 | P94: 0.025 | Q94: 0.02380952381 | R94: 0.02083333333
B95: =$A83/B$76 -> 0.2916666667 | C95: 0.1458333333 | D95: 0.1166666667 | E95: 0.09722222222 | F95: 0.08333333333 | G95: 0.07291666667 | H95: 0.06481481481 | I95: 0.05833333333 | J95: 0.05303030303 | K95: 0.04861111111 | L95: 0.04166666667 | M95: =$A83/M$76 -> 0.03888888889 | N95: 0.03645833333 | O95: 0.03240740741 | P95: 0.02916666667 | Q95: 0.02777777778 | R95: 0.02430555556
B96: =$A84/B$76 -> 0.3333333333 | C96: 0.1666666667 | D96: 0.1333333333 | E96: 0.1111111111 | F96: 0.09523809524 | G96: 0.08333333333 | H96: 0.07407407407 | I96: 0.06666666667 | J96: 0.06060606061 | K96: 0.05555555556 | L96: 0.04761904762 | M96: =$A84/M$76 -> 0.04444444444 | N96: 0.04166666667 | O96: 0.03703703704 | P96: 0.03333333333 | Q96: 0.03174603175 | R96: 0.02777777778
B97: =$A85/B$76 -> 0.375 | C97: 0.1875 | D97: 0.15 | E97: 0.125 | F97: 0.1071428571 | G97: 0.09375 | H97: 0.08333333333 | I97: 0.075 | J97: 0.06818181818 | K97: 0.0625 | L97: 0.05357142857 | M97: =$A85/M$76 -> 0.05 | N97: 0.046875 | O97: 0.04166666667 | P97: 0.0375 | Q97: 0.03571428571 | R97: 0.03125
B98: =$A86/B$76 -> 0.4166666667 | C98: 0.2083333333 | D98: 0.1666666667 | E98: 0.1388888889 | F98: 0.119047619 | G98: 0.1041666667 | H98: 0.09259259259 | I98: 0.08333333333 | J98: 0.07575757576 | K98: 0.06944444444 | L98: 0.05952380952 | M98: =$A86/M$76 -> 0.05555555556 | N98: 0.05208333333 | O98: 0.0462962963 | P98: 0.04166666667 | Q98: 0.03968253968 | R98: 0.03472222222
B99: =$A87/B$76 -> 4.166666667 | C99: 2.083333333 | D99: 1.666666667 | E99: 1.388888889 | F99: 1.19047619 | G99: 1.041666667 | H99: 0.9259259259 | I99: 0.8333333333 | J99: 0.7575757576 | K99: 0.6944444444 | L99: 0.5952380952 | M99: =$A87/M$76 -> 0.5555555556 | N99: 0.5208333333 | O99: 0.462962963 | P99: 0.4166666667 | Q99: 0.3968253968 | R99: 0.3472222222
